Cogmind - Beta 15 @@@ ROGUE MODE // 2025.06.07 @ 02:23:13 Player: Mas5akr Result: Destroyed by H-61 Shepherd with Heavy Assault Cannon Performance ------------- Evolutions (4) 2000 Regions Visited (7) 1400 Robots Destroyed (76) 380 Value Destroyed (2013) 2013 Prototype IDs (6) 120 Alien Tech Used (0) 0 Bonus (800) 800 TOTAL SCORE: 6713 Bonus ------- Registered with UFD 300 Met Optimus in HQ 500 Cogmind --------- Core Integrity 0/850 Matter 69/300 Energy 76/100 System Corruption 4% Temperature Cool (0) Movement Core (50) Location -6/Factory Parts ------- > --- POWER (1) -------- (None) > --- PROPULSION (3) --- (None) > --- UTILITY (9) ------ Hacking Suite Hacking Suite > --- WEAPON (2) ------- (None) > --- INVENTORY (5) ---- Improved VTOL Module Makeshift Light Armor Plating Mini Grenade Launcher Mini Grenade Launcher Long-range Missile Launcher Peak State ------------ > --- POWER ------------ Light Angular Momentum Engine > --- PROPULSION ------- Armored Treads Overtuned Treads Overtuned Treads > --- UTILITY ---------- Large Storage Unit Makeshift Light Armor Plating Reactive Plating Hacking Suite System Shield System Shield > --- WEAPON ----------- Advanced Beam Cannon Advanced Beam Cannon > --- INVENTORY -------- Light Angular Momentum Engine Improved VTOL Module Improved VTOL Module Improved VTOL Module Improved VTOL Module Small Storage Unit Authchip [Propulsion] Authchip [Processor] Mini Grenade Launcher Mini Grenade Launcher Long-range Missile Launcher Scythe [Rating: 41] Favorites ----------- Power Light Angular Momentum Engine Engine Light Angular Momentum Engine Power Core Light Nuclear Core Propulsion Light Treads Treads Light Treads Flight Unit Improved VTOL Module Utility Large Storage Unit Device Heat Sink Storage Large Storage Unit Processor Improved Targeting Computer Hackware System Shield Protection Reactive Plating Weapon Advanced Beam Cannon Energy Gun Medium Laser Energy Cannon Advanced Beam Cannon Ballistic Gun Minigun Ballistic Cannon Assault Cannon Launcher Grenade Launcher Slashing Weapon Scythe Build | -11 -10 -10 -9 -9 -9 -9 -6 ------- Run | Yrd Mat Min Mat Sto Rec Scr Fac Slots Evolved 8 | . . . 2 . . . 6 Power . | . . . . . . . . Propulsion 1 | . . . 1 . . . . Utility 7 | . . . 1 . . . 6 Weapon . | . . . . . . . . Parts Attached 61 | 6 2 4 14 11 1 7 16 Power 8 | 1 . 1 1 . 1 2 2 Engine 7 | 1 . 1 1 . . 2 2 Core 1 | . . . . . 1 . . Reactor . | . . . . . . . . Propulsion 20 | 2 . 1 6 4 . 4 3 Treads 15 | 2 . 1 4 4 . 4 . Leg . | . . . . . . . . Wheel . | . . . . . . . . Hover . | . . . . . . . . Flight 5 | . . . 2 . . . 3 Utility 17 | 1 2 . 4 2 . 1 7 Device 1 | . . . . 1 . . . Storage 2 | 1 1 . . . . . . Processor 1 | . . . 1 . . . . Hackware 7 | . . . . . . . 7 Protection 6 | . 1 . 3 1 . 1 . Artifact . | . . . . . . . . Weapon 16 | 2 . 2 3 5 . . 4 Energy Gun 1 | 1 . . . . . . . Energy Cannon 2 | . . . . 2 . . . Ballistic Gun 5 | 1 . . 3 1 . . . Ballistic Cannon 1 | . . 1 . . . . . Launcher 5 | . . 1 . 2 . . 2 Special Weapon . | . . . . . . . . Impact Weapon . | . . . . . . . . Slashing Weapon 2 | . . . . . . . 2 Piercing Weapon . | . . . . . . . . Special Melee Weapon . | . . . . . . . . Unidentified Prototypes 4 | . . . 3 1 . . . Corrupted Parts 2 | . . . . . . . 2 System Corruption 4 | . . . . . . . 4 Parts Lost 14 | . . . 1 . 1 . 12 Power 4 | . . . . . 1 . 3 Propulsion 3 | . . . . . . . 3 Utility 4 | . . . . . . . 4 Weapon 3 | . . . 1 . . . 2 Highest Loss Streak 10 | . . . 1 . 1 . 10 To Critical Strikes . | . . . . . . . . Average Backups 13 | 2 8 14 14 14 15 15 7 Power 1 | 1 2 2 1 1 1 . . Propulsion 3 | . . 2 2 4 4 4 2 Utility 5 | . 1 5 6 5 6 6 2 Weapon 3 | . 4 5 4 4 3 3 3 Tool/Special . | . . . . . . . . Unused Backups 13 | . 1 2 7 1 . . 2 Power 1 | . . . 1 . . . . Propulsion 1 | . . . . . . . 1 Utility 4 | . 1 1 2 . . . . Weapon 7 | . . 1 4 1 . . 1 Tool/Special . | . . . . . . . . Average Slot Usage (%) 93 | . 90 100 99 99 96 93 59 Engine 8 | . 14 14 11 10 3 5 5 Treads 29 | . 28 28 32 33 33 33 . Device 5 | . . . . 2 11 10 . Storage 11 | . 14 14 11 11 11 11 5 Processor 1 | . . . 9 8 . . . Hackware 1 | . . . . . . . 26 Protection 10 | . 4 14 12 11 11 11 . Energy Gun 1 | . 14 3 . . . . . Energy Cannon 11 | . . . . 7 21 22 . Ballistic Gun 5 | . 14 2 21 13 . . . Ballistic Cannon 1 | . . 10 . . . . . Launcher 1 | . . 11 . . . . . Peak Build Rating 41 | 6 8 11 26 24 23 33 41 Average Rating 19 | 3 6 9 22 23 20 21 31 On Entrance 15 | . 6 8 11 24 21 18 33 Naked Turns . | . . . . . . . . Heaviest Build 52 | 14 30 34 52 48 48 51 30 Greatest Support 60 | 40 40 40 60 60 60 60 16 Greatest Overweight (x) 14 | 1 . . 14 . . 1 3 Average Overweight (x) . | . . . . . . . . Largest Inventory Capacity 15 | 8 15 15 15 15 15 15 15 Average Capacity 14 | 6 12 15 15 15 15 15 8 Most Carried 15 | 5 15 15 15 15 15 15 14 Average Carried 13 | 2 8 14 14 14 14 14 7 Final Capacity 15 | 8 15 15 15 15 15 15 5 Final Carried 15 | 2 15 15 15 15 15 15 5 Class Distribution -------------------- 49% | Scavenger-Mutant 44% | Mutant 3% | Hacker-Sprinter Dominant Class ---------------- Mutant | -10/Materials Mutant | -10/Mines Scavenger-Mutant | -9/Materials Scavenger-Mutant | -9/Storage Scavenger-Mutant | -9/Recycling Scavenger-Mutant | -9/Scraptown Hacker-Sprinter | -6/Factory Resources | -11 -10 -10 -9 -9 -9 -9 -6 ----------- Run | Yrd Mat Min Mat Sto Rec Scr Fac Matter Collected 1811 | 233 146 213 505 465 40 80 129 Remotely . | . . . . . . . . Salvage Created 2253 | . 246 113 704 736 172 70 212 Parts 179 | . 30 13 49 53 6 4 24 Haulers Intercepted 3 | . 1 . 2 . . . . Recyclers Shooed 2 | . . . 1 . . . 1 Parts Field Recycled . | . . . . . . . . Retrieved Matter . | . . . . . . . . Parts Self-Destructed . | . . . . . . . . Prevented . | . . . . . . . . Kills | -11 -10 -10 -9 -9 -9 -9 -6 ------- Run | Yrd Mat Min Mat Sto Rec Scr Fac Combat Hostiles Destroyed 65 | . 9 11 15 15 3 1 11 Melee 3 | . . . . . . . 3 Guns 40 | . 9 1 15 15 . . . Cannons 4 | . . 1 . . 2 1 . AOE 17 | . . 9 . . . . 8 Classes Destroyed 14 | . 5 3 3 . . 1 2 Worker 3 | . . 1 1 . . . 1 Builder 2 | . 1 . . . . . 1 Hauler 3 | . 1 . 2 . . . . Recycler 1 | . . 1 . . . . . Operator 2 | . 1 . . . . . 1 Watcher 5 | . 1 . 1 2 . . 1 Swarmer 25 | . 9 6 3 . . . 7 Cutter 2 | . . . . . . . 2 Grunt 17 | . . . 7 10 . . . Brawler 1 | . . . 1 . . . . Sentry 13 | . . . 4 5 3 . 1 Programmer 1 | . . . . . . . 1 Scrapper 1 | . . . . . . 1 . Assembled 5 | . . 5 . . . . . Best Kill Streak 11 | . 6 7 5 5 2 1 11 Combat Bots Only 8 | . 5 5 5 4 2 1 8 Max Kills in Single Turn 3 | . 1 3 2 1 1 1 3 Gunslinging 1 | . . . 1 . . . . Exploded 3 | . . 3 . . . . 3 Melee 1 | . . . . . . . 1 Uniques/NPCs Destroyed . | . . . . . . . . Combat | -11 -10 -10 -9 -9 -9 -9 -6 -------- Run | Yrd Mat Min Mat Sto Rec Scr Fac Hostile Shots Fired 497 | . 45 17 65 46 20 11 293 Missed 192 | . 14 4 16 17 5 4 132 Hits 305 | . 31 13 49 29 15 7 161 Melee 6 | . . 1 2 . . . 3 Projectile 299 | . 31 12 47 29 15 7 158 AOE 1 | . . . . . . . 1 Critical Strikes 5 | . 1 . 3 . 1 . . Damage Taken 3317 | . 278 269 562 413 194 74 1527 Core 1171 | . 56 97 49 58 44 8 859 Absorbed by Shields . | . . . . . . . . Redirected to Shielding 1 | . 1 . . . . . . Ignored by Resistances 83 | . . . 42 18 23 . . Regen/Repaired (Parts) 43 | . . . . 43 . . . Core Remaining (%) 66 | 100 . 38 . . . 60 . Volleys Fired 175 | . 31 16 43 51 10 6 18 Largest 2 | . 2 2 2 2 2 2 1 Hottest 136 | . 70 80 50 136 136 136 43 Shots Fired 330 | . 60 32 86 102 20 12 18 Gun 233 | . 60 13 86 74 . . . Cannon 67 | . . 7 . 28 20 12 . Launcher 30 | . . 12 . . . . 18 Special . | . . . . . . . . Kinetic 202 | . 31 11 86 74 . . . Thermal 98 | . 29 9 . 28 20 12 . Explosive 30 | . . 12 . . . . 18 Electromagnetic . | . . . . . . . . Robot Hit Streak 32 | . 6 3 18 32 24 26 5 Robot Miss Streak 4 | . 4 3 3 1 . 2 . Penetration Max . | . . . . . . . . Secondary Targets 1 | . . . 1 . . . . Max Gunslinging Chain 1 | . . . 1 . . . . Shots Hit Robots 213 | . 32 6 66 59 19 8 23 Core Hits 115 | . 15 16 24 24 2 3 31 Critical Kills . | . . . . . . . . Critical Parts Destroyed . | . . . . . . . . Critical Strikes 4 | . 2 . . . . . 2 Burn 2 | . 2 . . . . . . Sever 2 | . . . . . . . 2 Melee Attacks 24 | . . . . . . . 24 Impact . | . . . . . . . . Slashing 24 | . . . . . . . 24 Piercing . | . . . . . . . . Sneak Attacks 4 | . . . . . . . 4 Combat Hostiles . | . . . . . . . . Follow-up Attacks . | . . . . . . . . Damage Inflicted 5723 | . 428 689 1155 1007 402 163 1879 Guns 2653 | . 428 63 1155 1007 . . . Cannons 580 | . . 28 . . 389 163 . Explosions 1662 | . . 598 . . . . 1064 Melee 811 | . . . . . . . 811 Ramming 17 | . . . . . 13 . 4 Kinetic 2466 | . 262 42 1155 1007 . . . Thermal 944 | . 166 226 . . 389 163 . Explosive 1485 | . . 421 . . . . 1064 Electromagnetic . | . . . . . . . . Impact . | . . . . . . . . Slashing 811 | . . . . . . . 811 Piercing . | . . . . . . . . Highest Corruption 4 | . 1 1 . . . . 4 Average Corruption 1 | . 1 1 . . . . 2 Corruption Purged . | . . . . . . . . Corruption Blocked . | . . . . . . . . Effects 14 | . 2 7 . . . . 5 Message Errors 4 | . . 3 . . . . 1 Matter Fused 2 | . 1 1 . . . . . Heat Flow Errors 1 | . . . . . . . 1 Energy Discharges 4 | . 1 . . . . . 3 Data Loss (minor) 2 | . . 2 . . . . . Alerts 1 | . . 1 . . . . . Overload Shots . | . . . . . . . . Overflow Damage 160 | . . 6 . . . . 154 Projectiles . | . . . . . . . . Explosions 23 | . . 6 . . . . 17 Melee 137 | . . . . . . . 137 Knockbacks . | . . . . . . . . Impact . | . . . . . . . . Kinetic . | . . . . . . . . Secondary . | . . . . . . . . Self-Inflicted Damage 131 | . . 129 . . . . 2 Shots 5 | . . 5 . . . . . Rammed 2 | . . . . . 1 . 1 Targets Rammed 2 | . . . . . 1 . 1 Kicked . | . . . . . . . . Crushed . | . . . . . . . . Highest Temperature 334 | . 63 76 129 252 334 333 255 Average Temperature 70 | . 21 30 46 79 173 148 126 Received Heat Transfer 1000 | . . 46 273 204 90 48 339 Effects 4 | . . . . 2 . 2 . Energy Bleed 2 | . . . . . . 2 . Interference 2 | . . . . 2 . . . Siege Activations . | . . . . . . . . Martial Activations . | . . . . . . . . Shielding Activations . | . . . . . . . . Robots Disrupted . | . . . . . . . . Combat Hostiles . | . . . . . . . . Robots Corrupted . | . . . . . . . . Combat Hostiles . | . . . . . . . . Parts Fried . | . . . . . . . . Impact Corruptions . | . . . . . . . . Robots Melted 1 | . . . . . 1 . . Combat Hostiles 1 | . . . . . 1 . . Parts Melted 5 | . . 1 . . 4 . . Heat Transferred 1952 | . 629 348 . . 703 272 . Parts Sabotaged . | . . . . . . . . Parts Stolen . | . . . . . . . . Parts Stripped . | . . . . . . . . Power Chain Reactions . | . . . . . . . . Alert | -11 -10 -10 -9 -9 -9 -9 -6 ------- Run | Yrd Mat Min Mat Sto Rec Scr Fac Maximum Alert Level 1 | . . 1 1 1 . . 1 Low Security (%) 85 | 100 100 78 75 76 100 . 72 Level 1 14 | . . 21 24 23 . . 27 Level 2 . | . . . . . . . . Level 3 . | . . . . . . . . Level 4 . | . . . . . . . . Level 5 . | . . . . . . . . High Security . | . . . . . . . . Max Security . | . . . . . . . . Peak Influence 298 | . 161 282 238 251 62 . 298 Initial 86 | . . 17 79 86 33 . . Average 91 | . 41 77 160 145 16 . 169 Influence Increases 2413 | . 285 367 492 475 250 . 544 Destroy 0b10 Robot/C 1180 | . 180 120 300 300 60 . 220 Destroy 0b10 Robot/NC 80 | . 20 10 20 10 . . 20 Destroy Leader 266 | . 34 20 66 94 . . 52 Successful Hack 68 | . 5 . 13 23 9 . 18 Select Force Hacks 180 | . . . . . 180 . . Disable Machine 150 | . . 135 . . . . 15 Destroy Structure 129 | . 1 82 3 3 1 . 39 Partial Spotted 75 | . . . . . . . 75 Lose Combat Pursuer 285 | . 45 . 90 45 . . 105 Influence Decreases 2231 | . 239 209 491 593 299 38 362 Entered New Map 365 | . . 29 125 119 54 38 . Time Decay 1736 | . 239 180 356 474 245 . 242 Lost Part 130 | . . . 10 . . . 120 Squads Dispatched 8 | . . 1 . 2 . . 5 Investigation 2 | . . 1 . 1 . . . Extermination . | . . . . . . . . Reinforcement 3 | . . . . 1 . . 2 Assault . | . . . . . . . . Garrison 3 | . . . . . . . 3 Intercept . | . . . . . . . . Searches Triggered . | . . . . . . . . Construction Impeded 1 | . . . . . . . 1 Haulers Reinforced . | . . . . . . . . Active Scanning Responses . | . . . . . . . . Cargo Convoy Interrupts . | . . . . . . . . Stealth | -11 -10 -10 -9 -9 -9 -9 -6 --------- Run | Yrd Mat Min Mat Sto Rec Scr Fac Distress Signals 6 | . 2 . 2 1 . . 1 Communications Jammed . | . . . . . . . . Distress Signals . | . . . . . . . . Times Spotted 111 | . 18 13 23 19 3 6 29 Peak Tracking Total 8 | . 5 3 7 5 2 2 8 Tactical Retreats 10 | . 1 . 3 2 . . 4 Traps | -11 -10 -10 -9 -9 -9 -9 -6 ------- Run | Yrd Mat Min Mat Sto Rec Scr Fac Traps Triggered 4 | . 2 . . 2 . . . Indirectly . | . . . . . . . . Trap Hack Attempts . | . . . . . . . . Triggered . | . . . . . . . . Disarmed . | . . . . . . . . Reprogrammed . | . . . . . . . . Reused . | . . . . . . . . Traps Extracted . | . . . . . . . . Installed . | . . . . . . . . Triggered . | . . . . . . . . Machines | -11 -10 -10 -9 -9 -9 -9 -6 ---------- Run | Yrd Mat Min Mat Sto Rec Scr Fac Machines Disabled 10 | . . 9 . . . . 1 Max in Single Turn 6 | . . 6 . . . . 1 Machines Repaired . | . . . . . . . . Machines Dismantled . | . . . . . . . . Machines Sabotaged . | . . . . . . . . Overloaded Fab Kills . | . . . . . . . . Hacking | -11 -10 -10 -9 -9 -9 -9 -6 --------- Run | Yrd Mat Min Mat Sto Rec Scr Fac Machines Accessed 41 | . 4 1 4 6 11 7 8 Terminals 19 | . 3 . 2 5 4 . 5 Fabricators 2 | . . . . . . . 2 Repair Stations 3 | . 1 . 1 1 . . . Recycling Units 6 | . . . . . 6 . . Scanalyzers 2 | . . . 1 . . . 1 Garrison Access . | . . . . . . . . Total Hacks 141 | . 12 1 11 19 23 49 26 Successful 98 | . 2 1 6 11 14 49 15 Failed 43 | . 10 . 5 8 9 . 11 Catastrophic 7 | . 1 . . . 3 . 3 Database Lockouts . | . . . . . . . . Manual 36 | . 7 . 1 5 17 . 6 Terminals 54 | . 11 . 5 14 11 . 13 Fabricators 5 | . . . . . . . 5 Repair Stations 9 | . 1 . 3 5 . . . Recycling Units 7 | . . . . . 7 . . Scanalyzers 11 | . . . 3 . . . 8 Garrison Access . | . . . . . . . . Terminal Hacks 72 | . 2 1 3 8 7 49 2 Record 47 | . . . . . 5 42 . Robot Analysis 7 | . . . . . . 7 . Prototype ID Bank 1 | . . . . 1 . . . Open Door 3 | . . 1 . 2 . . . Level Access Points 1 | . . . . . 1 . . Branch Access Points 5 | . 1 . 2 1 1 . . Recycling Unit Index 1 | . . . . . . . 1 Alert Level 1 | . . . . 1 . . . Transport Status 1 | . . . . 1 . . . Zone Layout 5 | . 1 . 1 2 . . 1 Fabricator Hacks 5 | . . . . . . . 5 Network Status 1 | . . . . . . . 1 Load Schematic 2 | . . . . . . . 2 Build 2 | . . . . . . . 2 Repair Station Hacks 4 | . . . 1 3 . . . Scan Component 3 | . . . 1 2 . . . Repair 1 | . . . . 1 . . . Recycling Unit Hacks 1 | . . . . . 1 . . Report Inventory 1 | . . . . . 1 . . Scanalyzer 10 | . . . 2 . . . 8 Insert Component 5 | . . . 1 . . . 4 Analyze 5 | . . . 1 . . . 4 Garrison Access Hacks . | . . . . . . . . Unauthorized Hacks 6 | . . . . . 6 . . Terminals . | . . . . . . . . Fabricators . | . . . . . . . . Repair Stations . | . . . . . . . . Recycling Units 6 | . . . . . 6 . . Tunnel 6 | . . . . . 6 . . Scanalyzers . | . . . . . . . . Garrison Access . | . . . . . . . . Data Cores Recovered 1 | . 1 . . . . . . Used . | . . . . . . . . Hacking Detections 19 | . 4 . 3 4 4 . 4 Full Trace Events 3 | . . . . 2 1 . . Feedback Events . | . . . . . . . . Feedback Blocked . | . . . . . . . . Robot Schematics Acquired . | . . . . . . . . Robots Built . | . . . . . . . . Authchips . | . . . . . . . . Time . | . . . . . . . . Total Robot Build Rating . | . . . . . . . . Part Schematics Acquired 5 | . . . 1 . . . 4 Parts Built 2 | . . . . . . . 2 Authchips 2 | . . . . . . . 2 Time 131 | . . . . . . . 131 Total Part Build Rating 6 | . . . . . . . 6 Parts Repaired 1 | . . . . 1 . . . Time 50 | . . . . 50 . . . Parts Recycled . | . . . . . . . . Recycled Matter . | . . . . . . . . Retrieved Matter . | . . . . . . . . Retrieved Components . | . . . . . . . . Parts Scanalyzed 5 | . . . 1 . . . 4 Part Schematics Acquired 5 | . . . 1 . . . 4 Parts Damaged 1 | . . . . . . . 1 Bothacking | -11 -10 -10 -9 -9 -9 -9 -6 ------------ Run | Yrd Mat Min Mat Sto Rec Scr Fac Used RIF Installer . | . . . . . . . . Robots Hacked . | . . . . . . . . Non-combat . | . . . . . . . . Combat . | . . . . . . . . Robot Hacks Applied . | . . . . . . . . Relay Couplers Released . | . . . . . . . . Fabnet Peak Effective % . | . . . . . . . . Robots Rewired . | . . . . . . . . Allies Hacked . | . . . . . . . . Hacks Repelled . | . . . . . . . . Allies | -11 -10 -10 -9 -9 -9 -9 -6 -------- Run | Yrd Mat Min Mat Sto Rec Scr Fac Total Allies . | . . . . . . . . Largest Group . | . . . . . . . . Highest-Rated Group . | . . . . . . . . Highest-Rated Ally . | . . . . . . . . Total Orders . | . . . . . . . . Ally Attacks . | . . . . . . . . Total Damage . | . . . . . . . . Kills . | . . . . . . . . Allies Corrupted . | . . . . . . . . Allies Melted 6 | . . . . . . 6 . Intel | -11 -10 -10 -9 -9 -9 -9 -6 ------- Run | Yrd Mat Min Mat Sto Rec Scr Fac Active Infowar (turns) . | . . . . . . . . Robot Analysis Total 7 | . . . . . . 7 . Derelict Logs Recovered 1 | . . 1 . . . . . Drone Launches . | . . . . . . . . Drone Recoveries . | . . . . . . . . Exploration | -11 -10 -10 -9 -9 -9 -9 -6 ------------- Run | Yrd Mat Min Mat Sto Rec Scr Fac Turns Passed 9122 | 46 918 1147 808 1213 1332 3089 569 Spaces Moved 5598 | 33 488 661 337 560 790 1885 844 Core 46 | 18 . . 1 . . . 27 Treads 4734 | 15 488 661 335 560 790 1885 . Legs . | . . . . . . . . Wheels . | . . . . . . . . Hover . | . . . . . . . . Flight 818 | . . . 1 . . . 817 Fastest Speed 29 | 50 160 160 160 160 160 150 29 Average Speed 143 | 106 160 160 163 160 160 161 47 Slowest Speed 750 | 160 160 160 750 160 160 205 245 Overloaded Moves . | . . . . . . . . Propulsion Burnouts . | . . . . . . . . Robots Hopped 26 | . . . . . . . 26 Potential Cave-ins . | . . . . . . . . Cave-ins Triggered . | . . . . . . . . Exploration Rate (%) 58 | 5 69 97 33 54 99 95 13 Regions Visited 7 Branch Regions 4 Pre-discovered Areas 7 | . . 1 . . 6 . . Known Exits Taken 3 | . 1 . 1 1 . . . Unknown Exits Taken 4 | 1 . 1 . . 1 1 . Scrap Searched 7 | . . 2 . . . 5 . Spaces Dug 7 | . . 6 . . . . 1 Terrain Destroyed 142 | . . 98 . . . . 44 Melee . | . . . . . . . . Projectile 3 | . . 3 . . . . . AOE 139 | . . 95 . . . . 44 Terrain Rammed . | . . . . . . . . Walls Destroyed . | . . . . . . . . Machines Disabled . | . . . . . . . . Actions | -11 -10 -10 -9 -9 -9 -9 -6 --------- Run | Yrd Mat Min Mat Sto Rec Scr Fac Total 6340 | 43 566 720 532 790 838 1921 930 Wait 374 | . 29 30 98 149 29 14 25 Move 5541 | 32 487 660 336 559 789 1884 794 Hop 24 | . . . . . . . 24 Pick Up 54 | 5 15 4 13 4 3 2 8 Fast Attach 26 | 3 . 1 9 7 . 1 5 Attach 21 | 3 2 . 4 . . 1 11 Detach 5 | . 1 . . . . . 4 Swap 35 | . . 3 6 9 3 6 8 Drop 59 | . 1 6 23 11 3 7 8 Fire 175 | . 31 16 43 51 10 6 18 Melee 24 | . . . . . . . 24 Ram 1 | . . . . . . . 1 Kick . | . . . . . . . . Crush 1 | . . . . . 1 . . Escape Stasis . | . . . . . . . . Rewire . | . . . . . . . . Trap . | . . . . . . . . Miscellaneous . | . . . . . . . . Route ------- -11/Scrapyard -10/Materials (discovered 5 exits: *Mat x3 / *Min x2) -10/Mines (discovered 2 exits: *Mat x2) -9/Materials (discovered 3 exits: Min / *Sto x2) -9/Storage -9/Recycling (discovered 2 exits: *Fac / *Scr) -9/Scraptown (discovered 2 exits: *Fac x2) -6/Factory History --------- Turn | Location | Event 10 | -11/Scrapyard | Discovered new exit (range 15) 47 | -11/Scrapyard | Entered Materials 80 | -10/Materials | Discovered new exit (range 16) 314 | -10/Materials | Build established: Mutant 463 | -10/Materials | Discovered new exit (range 5) 530 | -10/Materials | Discovered new exit (range 8) 625 | -10/Materials | Discovered new exit (range 14) 675 | -10/Materials | Identified exit to Mines 848 | -10/Materials | Discovered new exit (range 16) 965 | -10/Materials | Entered Mines 966 | -10/Mines | Assembled infested the area 971 | -10/Mines | Assisted by a Guerilla fighting off Assembled 1013 | -10/Mines | Met a Derelict bent on vengeance 1077 | -10/Mines | Discovered new exit (range 14) 1266 | -10/Mines | Discovered new exit (range 5) 1274 | -10/Mines | Met a Derelict shopkeep closing up shop 1365 | -10/Mines | Learned location of Storage (-9) 1386 | -10/Mines | Joined a pair of Derelicts in attacking an 0b10 outpost 1617 | -10/Mines | Received a Rocket Launcher from a helpful Derelict 1706 | -10/Mines | Core integrity fell below 50% 2112 | -10/Mines | Entered Materials 2112 | -9/Materials | Evolved 2 slots: Propulsion x1, Utility x1 2226 | -9/Materials | Identified exit to Mines 2226 | -9/Materials | Identified exit to Storage 2615 | -9/Materials | Build established: Scavenger-Mutant 2920 | -9/Materials | Entered Storage 2973 | -9/Storage | Identified exit to Recycling 3074 | -9/Storage | Build established: Mutant 3154 | -9/Storage | Repaired Lgt. Angular Momentum Engine 3713 | -9/Storage | Build established: Scavenger-Mutant 4127 | -9/Storage | Used back door to open Recycling access 4133 | -9/Storage | Entered Recycling 4134 | -9/Recycling | Met a Zionite searching for Scraptown 4648 | -9/Recycling | Identified exit to Factory 4894 | -9/Recycling | Scanned before Scraplab entrance 4916 | -9/Recycling | Entered Scraplab 4929 | -9/Recycling | Discovered new exit (range 3) 5465 | -9/Recycling | Entered Scraptown 5819 | -9/Scraptown | Visited Spacefarers 5905 | -9/Scraptown | Visited Assassins FH 5971 | -9/Scraptown | Visited UFD Registry 5998 | -9/Scraptown | Visited The Evicted 6065 | -9/Scraptown | Visited Symbiants 6102 | -9/Scraptown | Visited Shadow of the Wyrm 6129 | -9/Scraptown | Visited Red Mages 6304 | -9/Scraptown | Discovered new exit (range 5) 6979 | -9/Scraptown | Visited IN-MT5's Study 7370 | -9/Scraptown | Registered with UFD as "Railsplitter" 7414 | -9/Scraptown | Visited Supply Room 7491 | -9/Scraptown | Visited Curators Association 7733 | -9/Scraptown | Visited Scrap Suit Storage 7739 | -9/Scraptown | Build established: Mutant 7780 | -9/Scraptown | Visited DA-N13 Charitable Foundation 7796 | -9/Scraptown | Found DCF Scrap (29 items) 7964 | -9/Scraptown | Visited Junk Repository 8023 | -9/Scraptown | Visited Analyses Database 8060 | -9/Scraptown | Visited Research Penetration Think Tank 8103 | -9/Scraptown | Visited Scrapoid Pod Storage 8129 | -9/Scraptown | Visited Cartography Club 8297 | -9/Scraptown | Met Optimus 8297 | -9/Scraptown | Accepted into 0bPrime 8399 | -9/Scraptown | Discovered new exit (range 5) 8421 | -9/Scraptown | Civil war broke out across Scraptown 8554 | -9/Scraptown | Entered Factory 8554 | -6/Factory | Evolved 6 slots: Utility x6 8657 | -6/Factory | Destroyed 8 combat bots 8791 | -6/Factory | Garrison activated, responded to threat 8932 | -6/Factory | Fabricated Hacking Suite? 9031 | -6/Factory | Fabricated Imp. VTOL Module? 9105 | -6/Factory | Core integrity fell below 50% 9117 | -6/Factory | Core integrity fell below 20% 9123 | -6/Factory | Destroyed by H-61 Shepherd with Heavy Assault Cannon Last Messages --------------- R-10 Processor collects Surge Thruster. U-05 Engineer lays Concrete. System Shield destroyed. U-05 Engineer lays Concrete. System Shield destroyed. U-05 Engineer destroyed. U-05 Engineer lays Concrete. R-10 Processor collects Surge Thruster. U-05 Engineer lays Concrete. Sml. Storage Unit destroyed. U-05 Engineer lays Concrete. Hacking Suite destroyed. U-05 Engineer lays Concrete. U-05 Engineer builds a Wall. U-05 Engineer lays Concrete. System corrupted: Energy discharge (-38). U-05 Engineer lays Concrete. K-01 Serf destroyed. K-01 Serf collects debris. Penetrated by Slug. Map ----- +----------------------------------------------------+ | ?????????????????????????????????????????????? | | ??????????????????????????????????????????????? | | ??????????????????????????????????????????????? | | #??????????????????????????????????????????????? | | #??????????????????????????????????????????????? | | #######????????????????????????????????????????? | | ## #????????????????????????????????????????? | | ##! #####?????#??????????????????????????????? | | ## # ###! #??????????????????????????????? | | ## + " #??????????????????????????????? | | # # ### #??????????????????????????????? | | # ## ##????????????????????????????????????? | | T # ## ########??????????????????????????????? | | # ## # #??????????????????????????????? | | # ## # =#??????????????????????????????? | | ########## # #??????????????????????????????? | | + #??????????????????????????????? | | # #??????????? ???? ????????????? | | # #????????? ????????????? | | ##+#####????????? ?H????????? | | ####+##### #????????????? ??????????? | | #? ??# #???????????? ?????????? | | ## """ ## #???????????? ???????????? | | ## """ ##+##+###?????????? #??????????????? | | ## """ # ########### #??????????????? | | ## # ## @ #??????????????? | | ## # ## k #??????????????? | | ######### ## % #??????????????? | | ### ############## R #??????????????? | | ##### # =k #??????????????? | | # # # %g k #??????????????? | | ### # k = #??????????????? | | + + # A #################???????? | | ### # ##????# #???????? | | # # # ####### #???????? | | # # # u #???????? | | ### + u ! = #???????? | | ### # *%= #???????? | | #?# # % | #???????? | | ###?# # = #???????? | | ????# " ^ ####### #???????? | | ????######+##########"########## % #???????? | | ?????????# #???# #?######+#######?????? | | ?????????# #???# """"""" #?# #?????? | | ?????????# #???# """"""" #?# """" """" #?????? | | ?????????# #???# """"""" #?# """" """" #?????? | | ?????????# #???# """"""" #?# """" """" #?????? | | ?????????# #???# #?# """" """" #?????? | | ?????????# #???# """"""" #?# """" """" #?????? | | ########## #???# """"""" [ #?# """" """" #?????? | +----------------------------------------------------+ Best States ------------- Heat Dissipation 38 Energy Generation 18 Energy Capacity 290 Matter Stores 300 Matter Capacity 300 Sight Range 16 Terrain Scan Density 10 Armor Coverage 300 Resistance: KI 20 Core Shielding 20 Power Shielding 33 Evasion (%) 64 Targeting Accuracy 6 Recoil Reduction 3 Offensive Hacking 30 Defensive Hacking 20 Authchip Count 2 Item Schematics ----------------- Hacking Suite | -9/Materials | Scanalyzed Scythe | -6/Factory | Scanalyzed Imp. VTOL Module | -6/Factory | Scanalyzed Mak. Light Armor Plating | -6/Factory | Scanalyzed Lrn. Missile Launcher | -6/Factory | Scanalyzed Robot Schematics ------------------ None Fabricated ------------ Hacking Suite | x1 | -6/Factory | Authchip Imp. VTOL Module | x1 | -6/Factory | Authchip Repaired ---------- Lgt. Angular Momentum Engine | 28% | -9/Storage Alien Tech Used ----------------- None Achievements -------------- Brute Force \\IAMDERELICT Challenges ------------ None Game ------ Seed DisposableSwordPerforator Manual? 0 Play Time 01:23:10 Cumulative 46.4 hours Start 2025.06.06 @ 23:57:18 End 2025.06.07 @ 02:23:13 Sessions 1 Manual Loads 0 Difficulty Rogue Special Mode None Game No. 45 Rogue 45 Adventurer 0 Explorer 0 Win Type - Total 1 Types 1/0/0/0/0/0/0/0/0/0 Lore% 33 Gallery% 37 Achievement% 41 Wizard Run 0 Options --------- Layout 1 ASCII 0 Keyboard 0 Movement Mouse Keybinds 0 Fullscreen 1 Font 24/Smallcaps Map View 50x35 Zoom Use 0% Tactical HUD 0 Map Filters NONE Filters NONE Steam 1 RUN: 9b2210b7-c94a-4095-b130-69b513098e85